bitfinex-derivatives/quotes_BTCF0:USTF0_20241025
["timestamp","ask_amount","ask_price","bid_price","bid_amount"]
[1729872158300,0.074002,67589.0,67588.0,0.00369]
[1729872158692,0.074003,67588.0,67587.0,0.020103]
[1729872158897,0.074003,67588.0,67585.0,0.074005]
[1729872159102,0.3608,67591.0,67583.0,0.07377257]
[1729872159296,0.4348,67591.0,67590.0,0.05907906]
[1729872159506,0.57473971,67597.0,67589.0,0.21305971]
[1729872159507,0.3608,67594.0,67589.0,0.21305971]
[1729872159710,0.3608,67608.0,67593.0,0.28683228]
[1729872159899,0.3608,67608.0,67605.0,0.21305971]
[1729872160096,0.073983,67606.0,67605.0,0.21305971]
[1729872160303,0.3608,67608.0,67607.0,0.073982]
[1729872160801,0.3608,67608.0,67607.0,1.573982]
[1729872161203,0.3608,67608.0,67607.0,2.017702]
[1729872161399,0.3608,67608.0,67607.0,2.09153611]
[1729872161596,0.3608,67608.0,67607.0,2.018702]
[1729872161800,0.3608,67616.0,67615.0,0.073973]
[1729872162407,0.3608,67616.0,67615.0,0.28713378]
[1729872163003,0.3608,67616.0,67615.0,0.51023342]
[1729872163315,0.3608,67629.0,67615.0,0.87994042]
[1729872163507,0.3608,67629.0,67626.0,0.28712178]
[1729872163710,0.3608,67629.0,67626.0,0.21316078]
[1729872163901,0.434754,67633.0,67630.0,0.073957]
[1729872164207,0.434754,67633.0,67631.0,0.21316078]
[1729872164409,0.3608,67633.0,67632.0,0.073955]
[1729872164610,0.073959,67629.0,67626.0,0.21316078]
[1729872164811,0.073959,67629.0,67628.0,0.073959]
[1729872165916,0.434754,67633.0,67629.0,0.073958]
[1729872166216,0.434754,67633.0,67631.0,0.21316078]
[1729872166601,0.073955,67632.0,67631.0,0.21316078]
[1729872167119,0.073958,67629.0,67628.0,0.001]
[1729872167612,0.3608,67633.0,67630.0,0.073957]
[1729872168016,0.073956,67632.0,67630.0,0.073957]
[1729872168215,0.3608,67633.0,67630.0,0.073957]
[1729872168405,0.073956,67631.0,67630.0,0.073957]
[1729872169323,0.3608,67633.0,67627.0,0.21316078]
[1729872169526,0.3608,67633.0,67632.0,0.073955]
[1729872169820,0.434754,67633.0,67632.0,0.073955]
[1729872170014,0.3608,67633.0,67632.0,0.073955]
[1729872171615,0.3608,67633.0,67632.0,0.09363464]
[1729872171823,0.3608,67633.0,67632.0,0.09463464]
[1729872173011,0.434754,67633.0,67632.0,0.001]
[1729872174325,0.073964,67624.0,67623.0,0.21316078]
[1729872174621,0.434764,67624.0,67623.0,0.21316078]
[1729872174823,0.073969,67619.0,67618.0,0.21316078]
[1729872175216,0.3608,67621.0,67615.0,1.50076]
[1729872175420,0.073977,67613.0,67611.0,0.21316078]
[1729872175617,0.073977,67613.0,67611.0,0.23337777]
[1729872175618,0.073977,67612.0,67611.0,0.23337777]
[1729872175819,0.073977,67612.0,67611.0,1.73337777]
[1729872177321,0.073987,67603.0,67602.0,0.00084]
[1729872177519,0.3608,67603.0,67599.0,0.21316078]
[1729872177713,0.073989,67601.0,67598.0,0.01984699]
[1729872177922,0.073989,67601.0,67594.0,0.21316078]
[1729872178315,0.073989,67601.0,67600.0,0.21537972]
[1729872179120,0.3608,67603.0,67601.0,0.073989]
[1729872179325,0.3608,67603.0,67600.0,0.21537972]
[1729872179326,0.073985,67605.0,67602.0,0.073987]
[1729872179630,0.073985,67605.0,67600.0,0.21537972]
[1729872179631,0.073985,67605.0,67604.0,0.21316078]
[1729872179828,0.3608,67625.0,67604.0,0.57396078]
[1729872180033,0.07397,67619.0,67614.0,0.28713578]
[1729872180229,0.07397,67619.0,67605.0,0.21316078]
[1729872180230,0.07397,67619.0,67618.0,0.21316078]
[1729872180525,0.3608,67625.0,67618.0,0.21316078]
[1729872180730,0.3608,67619.0,67618.0,0.07397]
[1729872180927,0.3608,67619.0,67618.0,0.28713078]
[1729872181227,0.3608,67619.0,67618.0,0.50872318]
[1729872181823,0.3608,67625.0,67618.0,0.95340318]
[1729872182023,0.3608,67625.0,67624.0,0.28712478]
[1729872182722,0.3608,67625.0,67624.0,0.50939662]
[1729872182921,0.434752,67635.0,67624.0,0.50939662]
[1729872182922,0.434752,67635.0,67633.0,0.073954]
[1729872183125,0.434752,67635.0,67634.0,0.21316078]
[1729872183329,0.3608,67635.0,67634.0,0.28711378]
[1729872183530,0.3608,67635.0,67634.0,1.78711378]
[1729872184135,0.0942,67648.0,67634.0,1.78711378]
[1729872184136,0.073942,67645.0,67641.0,0.073944]
[1729872184436,0.3608,67648.0,67646.0,0.073939]
[1729872184633,0.3608,67648.0,67644.0,0.21316078]
[1729872185632,0.3608,67648.0,67647.0,0.073938]
[1729872187434,0.3608,67648.0,67647.0,0.09500757]
[1729872188425,0.073929,67657.0,67647.0,0.24351128]
[1729872188732,0.3608,67659.0,67652.0,0.21316078]
[1729872188931,0.434726,67659.0,67658.0,0.21316078]
[1729872189236,0.434726,67659.0,67658.0,1.71316078]
[1729872189427,0.3608,67659.0,67658.0,1.71316078]
[1729872189631,0.3608,67659.0,67658.0,1.78708678]
[1729872190027,0.3608,67659.0,67658.0,1.71316078]
[1729872190221,0.434725,67659.0,67658.0,1.71316078]
[1729872191035,0.434725,67659.0,67658.0,1.71416078]
[1729872192136,0.434725,67659.0,67658.0,0.21416078]
[1729872193633,0.434725,67659.0,67658.0,0.23406726]
[1729872194629,0.64788578,67659.0,67658.0,0.001]
[1729872194837,0.073938,67647.0,67646.0,0.12736]
[1729872195134,0.073945,67641.0,67639.0,0.56116962]
[1729872195335,0.434745,67641.0,67640.0,1.5]
[1729872195537,0.434745,67641.0,67639.0,0.01947724]
[1729872195538,0.073946,67640.0,67639.0,0.01947724]
[1729872195837,0.073946,67640.0,67630.0,0.07617354]
[1729872195838,0.073956,67631.0,67630.0,0.00221754]
[1729872196038,0.434756,67631.0,67630.0,0.00221754]
[1729872196427,0.073978,67611.0,67610.0,0.2153795]
[1729872196635,0.434778,67611.0,67610.0,0.21316078]
[1729872197034,0.07398,67609.0,67606.0,1.5]
[1729872197234,0.3608,67611.0,67606.0,1.5]
[1729872197235,0.073982,67607.0,67606.0,1.5]
[1729872197834,0.3608,67642.0,67606.0,2.95964421]
[1729872198038,0.3608,67650.0,67641.0,0.21316078]
[1729872198341,0.073932,67654.0,67649.0,0.57396078]
[1729872198638,0.3608,67658.0,67653.0,0.21316078]
[1729872199139,0.3608,67658.0,67653.0,0.28709178]
[1729872199941,0.3608,67658.0,67654.0,0.073931]
[1729872200138,0.1256,67671.0,67657.0,0.3608]
[1729872200441,0.1256,67671.0,67654.0,0.3608]
[1729872200442,0.3608,67663.0,67654.0,0.3608]
[1729872200643,0.1191,67662.0,67654.0,0.3608]
[1729872202245,0.3608,67663.0,67661.0,0.21316078]
[1729872202637,0.3608,67663.0,67656.0,0.21316078]
[1729872202839,0.3608,67663.0,67655.0,1.5]
[1729872203038,0.3608,67663.0,67654.0,0.001]
[1729872203550,0.21316078,67659.0,67654.0,0.001]
[1729872203741,0.073928,67657.0,67643.0,0.073942]
[1729872203939,0.073928,67657.0,67656.0,0.001]
[1729872204139,0.3608,67663.0,67656.0,0.001]
[1729872204340,0.073926,67659.0,67656.0,0.001]
[1729872204550,0.3608,67657.0,67656.0,0.001]
[1729872204944,0.8042,67657.0,67656.0,0.001]
[1729872205146,0.3608,67657.0,67656.0,0.001]
[1729872205644,0.3608,67657.0,67656.0,0.073929]
[1729872205947,0.3608,67657.0,67656.0,0.077619]
[1729872206637,0.3608,67657.0,67656.0,0.078619]
[1729872207948,0.3608,67657.0,67656.0,0.00469]
[1729872208141,0.434728,67657.0,67656.0,0.001]
[1729872208345,0.3608,67657.0,67656.0,0.001]
[1729872208646,0.434728,67657.0,67650.0,0.073935]
[1729872208849,0.3608,67657.0,67652.0,0.073933]
[1729872209043,0.3608,67657.0,67653.0,0.073932]
[1729872210544,0.3608,67657.0,67651.0,0.00369]
[1729872210756,0.01949471,67668.0,67651.0,0.00369]
[1729872210757,0.3608,67670.0,67656.0,0.3608]
[1729872211049,0.3608,67670.0,67669.0,0.073914]
[1729872212648,0.3608,67670.0,67669.0,1.573914]
[1729872212957,0.2424,67684.0,67669.0,1.8608]
[1729872213253,0.0022174,67685.0,67684.0,0.073898]
[1729872214650,0.3608,67701.0,67684.0,1.31172993]
[1729872214841,0.3608,67701.0,67700.0,0.28704178]
[1729872215159,0.3608,67701.0,67700.0,1.78704178]
[1729872215448,0.3608,67701.0,67689.0,0.073892]
[1729872215449,0.073884,67697.0,67689.0,0.073892]
[1729872215648,0.3608,67693.0,67688.0,0.01997488]
[1729872215955,0.3608,67693.0,67680.0,0.21316078]
[1729872215956,0.3608,67692.0,67680.0,0.21316078]
[1729872216159,0.073899,67683.0,67675.0,0.21316078]
[1729872216453,0.3608,67684.0,67670.0,0.00221662]
[1729872216454,0.3608,67678.0,67670.0,0.00221662]
[1729872216757,0.1284,67683.0,67673.0,0.3608]
[1729872216947,0.28706978,67674.0,67673.0,0.3608]
[1729872217147,0.073909,67674.0,67673.0,0.3608]
[1729872220455,0.3598,67681.0,67673.0,0.3608]
[1729872220757,0.073908,67675.0,67673.0,0.3608]
[1729872221353,0.073909,67674.0,67673.0,0.3608]
[1729872221755,0.40234473,67674.0,67673.0,0.3608]
[1729872222454,0.073925,67666.0,67665.0,0.3608]
[1729872222758,0.40236073,67666.0,67665.0,0.3608]
[1729872223153,0.40236073,67666.0,67659.0,0.36301704]
[1729872223154,0.073932,67660.0,67659.0,0.00221704]
[1729872223348,0.073932,67660.0,67649.0,0.073943]
[1729872223349,0.32843573,67660.0,67649.0,0.073943]
[1729872223550,0.07394,67652.0,67649.0,0.073943]
[1729872223758,0.32843573,67660.0,67648.0,0.47552]
[1729872223955,0.32843573,67660.0,67648.0,0.549465]
[1729872223956,0.07394,67652.0,67648.0,0.549465]
[1729872224456,0.07394,67652.0,67648.0,0.47552]
[1729872224658,0.07394,67652.0,67649.0,0.073944]
[1729872224857,0.07394,67652.0,67648.0,0.47552]
[1729872225557,0.07394,67652.0,67648.0,0.36172]
[1729872225755,0.07394,67652.0,67636.0,0.45040727]
[1729872225756,0.87818,67652.0,67639.0,0.3608]
[1729872225954,0.073954,67640.0,67639.0,0.3608]
[1729872228265,0.073956,67638.0,67637.0,0.00221782]
[1729872229663,0.073956,67638.0,67637.0,0.07617482]
[1729872230354,0.073956,67638.0,67637.0,0.00221782]
[1729872231156,0.3608,67646.0,67637.0,0.00221782]
[1729872231364,0.3608,67646.0,67633.0,0.00369]
[1729872231365,0.07395,67643.0,67642.0,0.073951]
[1729872232064,0.073946,67647.0,67639.0,0.3608]
[1729872232264,0.073947,67646.0,67645.0,0.3608]
[1729872233470,0.073947,67646.0,67645.0,0.434748]
[1729872234576,0.073947,67646.0,67645.0,0.3608]
[1729872235466,0.206419,67654.0,67642.0,0.073951]
[1729872235662,0.206419,67654.0,67639.0,0.434754]
[1729872235663,0.073954,67640.0,67639.0,0.434754]
[1729872235971,0.073954,67640.0,67639.0,0.3608]
[1729872236669,0.073954,67640.0,67639.0,0.434755]
[1729872237564,0.13248,67649.0,67639.0,0.3608]
[1729872238164,0.073945,67648.0,67639.0,0.3608]
[1729872238368,0.13248,67649.0,67639.0,0.434754]
[1729872238369,0.073953,67641.0,67639.0,0.434754]
[1729872238772,0.13248,67649.0,67639.0,0.434754]
[1729872238964,0.073954,67640.0,67639.0,0.434754]
[1729872239167,0.13248,67649.0,67642.0,0.073951]
[1729872239366,0.07395,67643.0,67642.0,0.073951]
[1729872239775,0.5739366,67646.0,67631.0,0.3608]
[1729872239974,0.5739366,67646.0,67634.0,0.07396]
[1729872239975,0.07396,67635.0,67634.0,0.07396]
[1729872240168,0.2131366,67642.0,67631.0,0.3608]
[1729872240368,0.2131366,67642.0,67634.0,0.07396]
[1729872240663,0.2131366,67642.0,67631.0,0.3608]
[1729872240664,0.13248,67645.0,67631.0,0.3608]
[1729872240869,0.07396,67634.0,67631.0,0.3608]
[1729872241670,0.073958,67637.0,67635.0,0.073959]
[1729872241868,0.0188669,67644.0,67635.0,0.073959]
[1729872242171,0.073956,67638.0,67635.0,0.073959]
[1729872242468,0.073953,67641.0,67639.0,0.073954]
[1729872243073,0.3608,67646.0,67639.0,0.073954]
[1729872243074,0.073954,67640.0,67639.0,0.073954]
[1729872243464,0.3608,67646.0,67635.0,0.073959]
[1729872243666,0.3608,67646.0,67631.0,0.00088]
[1729872243667,0.07396,67634.0,67631.0,0.00088]
[1729872243867,0.5739366,67634.0,67626.0,0.00221822]
[1729872244168,0.2871046,67627.0,67626.0,0.00221822]
[1729872244371,0.2871046,67627.0,67618.0,0.3608]
[1729872244572,0.2871126,67619.0,67618.0,0.3608]
[1729872245273,0.073982,67614.0,67613.0,0.00369]
[1729872245475,0.2871186,67614.0,67613.0,0.00369]
[1729872245780,0.073984,67612.0,67605.0,0.1188]
[1729872246464,0.073984,67612.0,67605.0,0.12249]
[1729872247070,0.073984,67612.0,67605.0,0.196481]
[1729872247378,0.073984,67612.0,67605.0,0.12249]
[1729872248981,0.073984,67612.0,67605.0,0.00369]
[1729872249574,0.073991,67606.0,67605.0,0.00369]
[1729872249767,0.073995,67602.0,67601.0,0.3608]
[1729872251079,0.074002,67596.0,67595.0,1.50096]
[1729872251280,0.074002,67596.0,67595.0,1.5]
[1729872251671,0.074002,67596.0,67595.0,1.8608]
[1729872252473,0.074002,67596.0,67595.0,1.934803]
[1729872252676,0.074002,67596.0,67595.0,1.8608]
[1729872253178,0.073995,67602.0,67597.0,0.074]
[1729872253376,0.073999,67598.0,67597.0,0.074]
[1729872254776,0.16020441,67609.0,67595.0,1.8618]
[1729872254978,0.073999,67599.0,67598.0,0.073999]
[1729872255176,0.073999,67599.0,67598.0,0.434799]
[1729872256374,0.073999,67599.0,67598.0,0.3608]
[1729872259082,0.073996,67603.0,67602.0,0.073995]
[1729872259587,0.073998,67599.0,67598.0,0.434799]
[1729872260991,0.01916617,67611.0,67598.0,0.3608]
[1729872261184,0.073985,67611.0,67610.0,0.3608]
[1729872261689,0.073985,67611.0,67610.0,0.795586]
[1729872261886,0.073985,67611.0,67610.0,0.7216]
[1729872262189,0.2871216,67611.0,67610.0,0.7216]
[1729872263188,0.073985,67611.0,67610.0,0.7216]
[1729872263582,0.2871216,67611.0,67610.0,0.7216]
[1729872263890,0.073985,67611.0,67610.0,0.7216]
[1729872265080,0.073985,67611.0,67610.0,0.795586]
[1729872265481,0.00221949,67620.0,67615.0,0.073979]
[1729872265688,0.07619549,67620.0,67619.0,0.434776]
[1729872266086,0.00221949,67620.0,67619.0,0.434776]
[1729872266477,0.073966,67629.0,67628.0,0.073967]
[1729872266679,0.073962,67633.0,67632.0,0.073961]
[1729872266878,0.073962,67633.0,67632.0,0.3608]
[1729872267297,0.073962,67633.0,67632.0,0.434762]
[1729872267993,0.00221863,67641.0,67632.0,0.3608]
[1729872268292,0.07617063,67641.0,67640.0,0.434754]
[1729872268595,0.07617063,67641.0,67640.0,0.3608]
[1729872269684,0.51969063,67641.0,67640.0,0.3608]
[1729872270289,0.51969063,67641.0,67640.0,0.30898761]
[1729872270596,0.51969063,67641.0,67640.0,0.22927461]
[1729872271181,0.073971,67624.0,67623.0,0.3608]
[1729872271387,0.2871076,67624.0,67623.0,0.3608]
[1729872273392,0.74953379,67624.0,67623.0,0.3608]
[1729872273689,0.74953379,67624.0,67612.0,0.00221872]
[1729872273690,0.073983,67613.0,67612.0,0.00221872]
[1729872274703,0.073987,67609.0,67608.0,0.3608]
[1729872274997,0.2871236,67609.0,67608.0,0.3608]
[1729872277885,0.073996,67601.0,67600.0,0.3608]
[1729872278090,0.4162526,67601.0,67600.0,0.3608]
[1729872278397,0.074003,67595.0,67594.0,0.3608]
[1729872280793,0.12912,67605.0,67594.0,0.3608]
[1729872280990,0.073999,67599.0,67598.0,0.073999]
[1729872281695,0.12912,67608.0,67597.0,0.2131366]
[1729872281902,0.203109,67608.0,67607.0,0.3608]
[1729872282089,0.12912,67608.0,67601.0,0.3608]
[1729872282292,0.073991,67606.0,67602.0,1.5]
[1729872282596,0.073983,67614.0,67602.0,1.7131366]
[1729872282796,0.073983,67614.0,67613.0,0.434783]
[1729872283198,0.073978,67618.0,67617.0,0.073978]
[1729872283399,0.073978,67618.0,67617.0,1.573978]
[1729872283991,0.073978,67618.0,67617.0,1.5]
[1729872284295,0.2871146,67618.0,67617.0,1.5]
[1729872284901,0.073982,67614.0,67613.0,0.435783]
[1729872285201,0.073982,67614.0,67613.0,0.3608]
[1729872285600,0.2871186,67614.0,67613.0,0.3608]
[1729872286803,0.073982,67614.0,67613.0,0.3608]
[1729872288705,0.073982,67614.0,67613.0,0.434783]
[1729872290397,0.2131366,67629.0,67613.0,0.5739366]
[1729872290602,0.073969,67626.0,67625.0,0.3608]
[1729872290802,0.2871056,67626.0,67625.0,0.3608]
[1729872291006,0.07397,67625.0,67619.0,0.3608]
[1729872291306,0.073982,67614.0,67613.0,0.3608]
[1729872291505,0.4161186,67614.0,67611.0,0.3608]
[1729872291708,0.4161186,67614.0,67604.0,0.3608]
[1729872291709,0.073992,67605.0,67604.0,0.3608]
[1729872291908,0.2871286,67605.0,67604.0,0.3608]
[1729872292307,0.2871286,67605.0,67595.0,0.3608]
[1729872292308,0.074002,67596.0,67595.0,0.3608]
[1729872294395,0.3421766,67609.0,67595.0,0.3608]
[1729872294702,0.3421766,67609.0,67607.0,0.3608]
[1729872294703,0.073989,67608.0,67607.0,0.3608]
[1729872295501,0.203029,67608.0,67607.0,0.3608]
[1729872297809,0.073989,67608.0,67607.0,0.3608]
[1729872299798,0.073989,67608.0,67603.0,0.3608]
[1729872300009,0.073993,67604.0,67603.0,0.3608]
[1729872300212,0.074002,67596.0,67595.0,0.3608]
[1729872300414,0.070312,67596.0,67595.0,0.3608]
[1729872303817,0.070312,67596.0,67589.0,0.41955595]
[1729872303818,0.074004,67594.0,67589.0,0.00088]
[1729872304010,0.074004,67594.0,67581.0,0.3608]
[1729872304011,0.074017,67582.0,67581.0,0.3608]
[1729872304206,0.4161936,67582.0,67581.0,0.3608]
[1729872305905,0.2871536,67582.0,67581.0,0.3608]
[1729872306209,0.074017,67582.0,67581.0,0.434818]
[1729872306404,0.2131366,67591.0,67581.0,0.434818]
[1729872306405,0.2131366,67591.0,67581.0,0.3608]
[1729872306604,0.073999,67599.0,67588.0,0.07401]
[1729872306605,0.07401,67589.0,67588.0,0.07401]
[1729872307017,0.073999,67599.0,67591.0,0.074007]
[1729872307018,0.074006,67592.0,67591.0,0.074007]
[1729872307514,0.074004,67595.0,67594.0,0.074003]
[1729872307908,0.074006,67592.0,67591.0,0.1147]
[1729872308108,0.074006,67592.0,67591.0,1.6147]
[1729872308515,0.074007,67591.0,67590.0,0.36156]
[1729872308813,0.074007,67591.0,67590.0,0.3608]
[1729872310623,0.01841894,67599.0,67590.0,0.3608]
[1729872310910,0.3608,67619.0,67594.0,0.074002]
[1729872310911,0.074003,67595.0,67594.0,0.074002]
[1729872311117,0.074003,67595.0,67592.0,0.2131366]
[1729872311118,0.073998,67600.0,67599.0,0.073997]
[1729872311312,0.073994,67604.0,67603.0,0.073994]
[1729872311705,0.073991,67607.0,67606.0,0.073989]
[1729872311912,0.073991,67607.0,67606.0,0.3608]
[1729872312810,0.073996,67601.0,67600.0,0.236]
[1729872313218,0.073997,67600.0,67599.0,0.36164]
[1729872313410,0.073997,67600.0,67599.0,0.3608]
[1729872313816,0.12904,67611.0,67599.0,0.5739366]
[1729872314012,0.073987,67609.0,67608.0,0.3608]
[1729872314324,0.073987,67609.0,67608.0,0.434789]
[1729872315119,0.073987,67609.0,67608.0,0.3608]
[1729872316214,0.073987,67609.0,67608.0,0.434789]
[1729872317518,0.073987,67609.0,67608.0,0.3608]
[1729872320713,0.07399,67607.0,67606.0,0.1132]
[1729872320916,0.07399,67607.0,67597.0,0.2131366]
[1729872320917,0.073992,67605.0,67598.0,0.04423133]
[1729872321211,0.073997,67600.0,67596.0,0.04423133]
[1729872321624,0.073997,67600.0,67599.0,0.283409]
[1729872321818,0.074004,67594.0,67593.0,0.3608]
[1729872322423,0.074013,67586.0,67585.0,0.3608]
[1729872322622,0.4133896,67586.0,67585.0,0.3608]
[1729872323424,0.4134296,67586.0,67585.0,0.3608]
[1729872324329,0.074021,67578.0,67577.0,0.00309]
[1729872324524,0.074026,67574.0,67573.0,0.00222016]
[1729872324714,0.074026,67574.0,67571.0,0.3608]
[1729872324715,0.074028,67572.0,67571.0,0.3608]
[1729872324919,0.074033,67568.0,67565.0,0.074915]
[1729872325118,0.3608,67567.0,67566.0,0.074035]
[1729872325432,0.434833,67567.0,67566.0,0.074035]
[1729872325724,0.3608,67567.0,67564.0,0.20515633]
[1729872325933,0.434833,67567.0,67566.0,0.074035]
[1729872327331,0.3608,67567.0,67564.0,0.08175633]
[1729872327527,0.3608,67567.0,67564.0,0.15579233]
[1729872327528,0.074036,67565.0,67564.0,0.15579233]
[1729872328034,0.074042,67559.0,67558.0,1.50076]
[1729872328231,0.074042,67559.0,67558.0,1.5]
[1729872328232,0.2871786,67559.0,67558.0,1.5]
[1729872328533,0.2871786,67559.0,67555.0,0.00222038]
[1729872328534,0.074044,67557.0,67555.0,0.00222038]
[1729872328733,0.074045,67556.0,67555.0,0.00222038]
[1729872329228,0.5748966,67559.0,67547.0,0.02344787]
[1729872329428,0.3608,67548.0,67547.0,0.074054]
[1729872330324,0.074044,67558.0,67547.0,0.2131366]
[1729872330523,0.074044,67558.0,67554.0,0.074047]
[1729872330733,0.3608,67559.0,67545.0,0.3608]
[1729872330934,0.3608,67551.0,67549.0,0.074053]
[1729872331321,0.074052,67550.0,67546.0,1.50088]
[1729872331521,0.074052,67550.0,67546.0,1.5]
[1729872331826,0.074052,67550.0,67548.0,0.074054]
[1729872333736,0.3608,67551.0,67546.0,1.50076]
[1729872333930,0.074054,67548.0,67546.0,1.5]
[1729872334136,0.074055,67547.0,67546.0,1.574056]
[1729872334527,0.5739366,67547.0,67533.0,0.00222108]
[1729872334729,0.3608,67536.0,67533.0,0.00222108]
[1729872334930,0.3608,67536.0,67535.0,0.074069]
[1729872335533,0.434855,67547.0,67543.0,0.074059]
[1729872335734,0.434855,67547.0,67542.0,0.2131366]
[1729872336138,0.434855,67547.0,67545.0,0.074057]
[1729872336626,0.434855,67547.0,67543.0,1.62776]
[1729872336627,0.3608,67547.0,67544.0,0.1296]
[1729872336830,0.3608,67551.0,67545.0,0.44416]
[1729872337030,0.3608,67551.0,67550.0,0.2871886]
[1729872338340,0.36168,67561.0,67550.0,0.14226037]
[1729872338527,0.3608,67561.0,67560.0,0.21630137]
[1729872338731,0.3608,67566.0,67560.0,0.21630137]
[1729872338939,0.3608,67566.0,67565.0,0.21629637]
[1729872339142,0.3608,67566.0,67565.0,1.71629637]
[1729872339843,0.3608,67566.0,67565.0,1.574036]
[1729872340237,0.434835,67566.0,67565.0,1.5]
[1729872340939,0.074038,67563.0,67562.0,0.1236]
[1729872341142,0.21339639,67564.0,67549.0,0.21339639]
[1729872341445,0.21339639,67564.0,67545.0,0.12632]
[1729872341446,0.074038,67563.0,67562.0,0.074039]
[1729872341748,0.3608,67566.0,67559.0,0.21339639]
[1729872341941,0.3608,67566.0,67565.0,0.074036]
[1729872342142,0.3608,67566.0,67561.0,0.07404]
[1729872342446,0.074038,67563.0,67561.0,0.07404]
[1729872342836,0.21339639,67564.0,67552.0,0.2626]
[1729872343037,0.3608,67560.0,67552.0,0.2626]
[1729872343240,0.3608,67560.0,67559.0,0.28743839]
[1729872344447,0.3608,67560.0,67559.0,0.074042]
[1729872344938,0.3608,67560.0,67555.0,0.074046]
[1729872345143,0.074045,67556.0,67555.0,0.074046]
[1729872345852,0.3608,67560.0,67559.0,0.074042]
[1729872346042,0.3608,67560.0,67559.0,0.28743839]
[1729872346646,0.3608,67567.0,67566.0,0.074035]
[1729872346847,0.3608,67567.0,67566.0,0.28743139]
[1729872347545,0.3608,67567.0,67566.0,0.074035]
[1729872348052,0.3608,67567.0,67566.0,0.28743139]
[1729872349155,0.3608,67567.0,67566.0,0.074035]
[1729872349838,0.3608,67567.0,67566.0,0.28743139]
[1729872350041,0.3608,67574.0,67573.0,0.074027]
[1729872350246,0.3608,67574.0,67573.0,0.28742339]
[1729872350452,0.3608,67574.0,67573.0,1.78742339]
[1729872352053,0.434826,67574.0,67573.0,1.5]
[1729872352244,0.434826,67574.0,67573.0,0.074027]
[1729872352449,0.3608,67574.0,67573.0,0.074027]
[1729872352657,0.3608,67574.0,67573.0,0.517987]
[1729872352843,0.3608,67574.0,67572.0,0.21339639]
[1729872353158,0.3608,67574.0,67568.0,0.2523]
[1729872353457,0.074028,67573.0,67572.0,0.074028]
[1729872355256,0.074031,67569.0,67568.0,0.326332]
[1729872355553,0.074031,67569.0,67568.0,0.195732]
[1729872355754,0.3608,67574.0,67565.0,0.05875595]
[1729872355960,0.07402,67579.0,67557.0,0.3608]
[1729872355961,0.074038,67564.0,67562.0,0.074038]
[1729872356157,0.074038,67564.0,67563.0,0.074038]
[1729872356860,0.3608,67567.0,67566.0,0.074035]
[1729872357557,0.434833,67567.0,67566.0,0.074035]
[1729872360764,0.3608,67567.0,67566.0,0.074035]
[1729872360966,0.434833,67567.0,67566.0,0.074035]
[1729872361961,0.074041,67560.0,67559.0,0.07626114]
[1729872362268,0.434841,67560.0,67559.0,0.00222014]
[1729872362564,0.07405,67552.0,67551.0,0.05875595]
[1729872362869,0.074052,67550.0,67549.0,0.05875595]
[1729872363168,0.3608,67553.0,67545.0,0.09772473]
[1729872363169,0.074056,67547.0,67545.0,0.09772473]
[1729872363361,0.074056,67546.0,67545.0,0.074057]
[1729872366467,0.074061,67542.0,67541.0,0.21631501]
[1729872366671,0.074061,67542.0,67541.0,0.074061]
[1729872366868,0.14225401,67546.0,67538.0,0.05875595]
[1729872367069,0.074067,67536.0,67535.0,0.05875595]
[1729872367367,0.07407,67534.0,67533.0,0.00222108]
[1729872367570,0.43487,67534.0,67533.0,0.00222108]
[1729872368160,0.43487,67534.0,67530.0,0.02328179]
[1729872368161,0.074073,67531.0,67530.0,0.02328179]
[1729872368370,0.3608,67534.0,67529.0,0.14225401]
[1729872368571,0.074074,67530.0,67529.0,0.21632901]
[1729872368769,0.3608,67534.0,67532.0,0.074071]
[1729872368971,0.074071,67533.0,67532.0,0.074071]
[1729872369172,0.074072,67532.0,67529.0,0.14225401]
[1729872369368,0.074073,67531.0,67529.0,0.14225401]
[1729872369569,0.074073,67531.0,67529.0,0.21632901]
[1729872369877,0.3608,67534.0,67529.0,0.074075]
[1729872369878,0.074074,67530.0,67529.0,0.074075]
[1729872370174,0.074074,67530.0,67529.0,0.02347232]
[1729872370471,0.434871,67533.0,67526.0,0.14225401]
[1729872370665,0.434871,67533.0,67530.0,0.14225401]
[1729872370975,0.3608,67537.0,67530.0,0.14225401]
[1729872371178,0.3608,67537.0,67536.0,0.21632101]
[1729872371670,0.3608,67544.0,67543.0,0.07406]
[1729872373876,0.12636,67553.0,67551.0,0.074051]
[1729872374081,0.1359,67560.0,67551.0,0.074051]
[1729872374282,0.02397471,67559.0,67551.0,0.074051]
[1729872374572,0.074048,67554.0,67551.0,0.074051]
[1729872374786,0.21341437,67553.0,67547.0,0.074055]
[1729872374970,0.12636,67558.0,67542.0,0.07406]
[1729872374971,0.21341437,67549.0,67542.0,0.07406]
[1729872375169,0.3608,67544.0,67542.0,0.07406]
[1729872375371,0.074063,67540.0,67538.0,0.074065]
[1729872375569,0.57421437,67544.0,67537.0,0.15949242]
[1729872375570,0.57517437,67544.0,67537.0,0.15949242]
[1729872375779,0.434859,67544.0,67542.0,0.07406]
[1729872376276,0.3608,67544.0,67543.0,0.07406]
[1729872376678,0.3608,67544.0,67537.0,0.13582119]
[1729872376875,0.07406,67543.0,67540.0,0.074063]
[1729872377377,0.07406,67543.0,67537.0,0.13582119]
[1729872377378,0.074063,67540.0,67537.0,0.07628719]
[1729872378175,0.3608,67544.0,67537.0,0.00222119]
[1729872378479,0.434859,67544.0,67540.0,0.074063]
[1729872378682,0.3608,67544.0,67543.0,0.07406]
[1729872379276,0.3608,67544.0,67538.0,0.074065]
[1729872379277,0.07406,67543.0,67538.0,0.074065]
[1729872379677,0.07406,67543.0,67537.0,0.00222119]